bitfinex/quotes_SOLUSD_20241007
["timestamp","ask_amount","ask_price","bid_price","bid_amount"]
[1728282565226,6.7015,149.22,149.17,34.33220495]
[1728282565427,6.7015,149.22,149.18,1.34047606]
[1728282565734,6.7015,149.22,149.17,34.33220495]
[1728282569848,1.67564083,149.21,149.17,23.4623]
[1728282570152,6.7015,149.22,149.17,23.4623]
[1728282570552,1.67568596,149.21,149.17,23.4623]
[1728282571955,8.37768596,149.21,149.17,23.4623]
[1728282572148,6.702,149.21,149.17,23.4623]
[1728282584351,20.0,149.25,149.19,6.7027]
[1728282584553,6.7011,149.23,149.2,16.5024]
[1728282587352,6.7006,149.24,149.2,23.2046]
[1728282587558,6.7007,149.24,149.2,16.5024]
[1728282588259,27.5775062,149.26,149.2,16.5024]
[1728282588260,8.37641837,149.23,149.2,16.5024]
[1728282588558,6.7006,149.24,149.2,16.5024]
[1728282600059,1.67539684,149.25,149.2,16.5024]
[1728282600263,6.7015,149.22,149.2,16.5024]
[1728282600561,6.7025,149.2,149.17,6.5738]
[1728282600766,6.702,149.21,149.17,6.5738]
[1728282600933,20.0,149.25,149.17,6.5738]
[1728282601139,6.7015,149.22,149.17,13.2775]
[1728282601634,1.67557209,149.21,149.17,6.5738]
[1728282601841,0.25098,149.23,149.16,15.2748]
[1728282602146,6.7029,149.19,149.16,15.2748]
[1728282606766,20.25098,149.23,149.16,15.2748]
[1728282606944,6.7023,149.21,149.16,15.2748]
[1728282607852,8.37814664,149.2,149.16,15.2748]
[1728282608061,6.7024,149.2,149.16,15.2748]
[1728282610350,6.5518,149.2,149.11,0.1]
[1728282610556,6.7056,149.13,149.11,0.1]
[1728282610856,6.706,149.12,149.11,0.1]
[1728282625174,7.29308153,149.14,149.11,0.1]
[1728282625381,60.50696604,149.19,149.11,1.44109838]
[1728282625382,6.7046,149.15,149.11,1.44109838]
[1728282625962,6.7046,149.15,149.11,0.1]
[1728282626890,6.7051,149.14,149.11,0.1]
[1728282630492,6.7056,149.13,149.11,0.1]
[1728282631692,6.706,149.12,149.11,0.1]
[1728282632897,1.67654377,149.16,149.11,0.1]
[1728282633095,6.705,149.15,149.11,1.44107443]
[1728282633676,20.0,149.16,149.11,1.44107443]
[1728282633977,6.7051,149.14,149.11,1.44107443]
[1728282634583,20.0,149.18,149.11,6.8064]
[1728282634584,6.7047,149.15,149.11,6.8064]
[1728282638100,6.7047,149.15,149.11,6.8064]
[1728282639171,6.7042,149.16,149.11,0.1]
[1728282639375,6.7033,149.18,149.12,26.96910495]
[1728282639575,6.7033,149.18,149.13,8.04587387]
[1728282640374,76.17724866,149.23,149.12,43.73340495]
[1728282640375,42.67084866,149.23,149.14,18.91565427]
[1728282640580,6.702,149.21,149.16,10.86990495]
[1728282640900,6.702,149.21,149.17,33.93254041]
[1728282641799,6.7011,149.23,149.18,6.7032]
[1728282642003,8.14817976,149.27,149.19,12.21022056]
[1728282642298,16.7462,149.29,149.21,10.86990495]
[1728282642478,6.7006,149.24,149.18,23.4602]
[1728282642674,1.67513811,149.28,149.18,34.33010495]
[1728282643584,21.67513811,149.28,149.18,16.7574]
[1728282643781,6.702,149.21,149.17,21.6185]
[1728282644196,6.702,149.21,149.17,15.0186]
[1728282645579,6.7025,149.2,149.17,15.0186]
[1728282646112,6.7015,149.22,149.18,1.34054399]
[1728282646602,6.7015,149.22,149.17,32.59220495]
[1728282651399,6.701,149.24,149.18,8.04351793]
[1728282651609,16.7495,149.26,149.18,8.04351793]
[1728282651610,6.7011,149.23,149.18,6.7031]
[1728282656921,6.7024,149.2,149.16,16.7595]
[1728282657096,18.55345737,149.24,149.14,10.86990495]
[1728282657301,6.7024,149.2,149.15,6.7045]
[1728282657988,18.55345737,149.24,149.14,10.86990495]
[1728282658189,6.702,149.21,149.16,6.7041]
[1728282658513,6.7025,149.2,149.16,6.7041]
[1728282659090,6.7025,149.2,149.15,6.7046]
[1728282660443,1.67567578,149.22,149.14,10.86990495]
[1728282660596,6.7029,149.19,149.14,17.57480495]
[1728282661915,6.7034,149.18,149.14,10.86990495]
[1728282662492,6.7029,149.19,149.14,17.57500495]
[1728282663318,6.7024,149.2,149.16,6.7041]
[1728282663497,20.0,149.23,149.16,17.57400495]
[1728282663813,6.702,149.21,149.16,17.57400495]
[1728282670609,1.6756044,149.23,149.16,17.57400495]
[1728282670815,6.7024,149.2,149.16,17.57400495]
[1728282674013,16.7522,149.24,149.16,17.57400495]
[1728282674235,6.40449,149.25,149.17,6.7035]
[1728282674402,6.7015,149.22,149.17,6.7035]
[1728282675416,6.7006,149.24,149.19,6.7028]
[1728282676903,6.701,149.23,149.19,6.7028]
[1728282678625,6.701,149.23,149.18,34.10830495]
[1728282682540,1.67532159,149.26,149.18,16.5352]
[1728282682733,6.7024,149.2,149.18,16.5352]
[1728282683445,6.7028,149.19,149.14,39.4344]
[1728282683601,6.7028,149.19,149.14,50.30430495]
[1728282683802,6.7028,149.19,149.15,1.34066332]
[1728282684004,6.7028,149.19,149.15,8.04516332]
[1728282686251,6.7028,149.19,149.15,6.7045]
[1728282686530,6.7028,149.19,149.14,50.30440495]
[1728282687117,6.7028,149.19,149.15,10.86990495]
[1728282687325,6.7019,149.21,149.17,6.7037]
[1728282687529,6.7019,149.21,149.18,1.3404511]
[1728282688338,6.7019,149.21,149.16,17.57400495]
[1728282690217,1.6755825,149.23,149.16,17.57400495]
[1728282690415,6.7024,149.2,149.16,17.57400495]
[1728282691331,6.7024,149.2,149.16,10.86990495]
[1728282691543,6.7024,149.2,149.14,50.30400495]
[1728282692532,6.7024,149.2,149.15,6.7046]
[1728282697424,6.7024,149.2,149.16,0.98296226]
[1728282698117,6.7024,149.2,149.16,11.85286721]
[1728282700034,6.7024,149.2,149.14,32.7295]
[1728282700035,24.027864,149.23,149.14,32.7295]
[1728282700242,6.7032,149.19,149.14,50.30440495]
[1728282701950,6.7032,149.19,149.15,1.34067217]
[1728282702333,6.7032,149.19,149.14,50.30440495]
[1728282702334,6.7037,149.17,149.14,15.9672]
[1728282702531,6.7042,149.16,149.11,39.5652]
[1728282704126,6.7042,149.16,149.11,23.5718]
[1728282704324,6.7042,149.16,149.11,24.0816922]
[1728282707440,1.67627107,149.15,149.11,0.6098922]
[1728282707619,24.027864,149.18,149.11,0.6098922]
[1728282707824,21.67646808,149.17,149.11,0.6098922]
[1728282708249,6.7056,149.13,149.11,0.6098922]
[1728282708916,8.38264782,149.12,149.11,0.6098922]
[1728282709114,6.706,149.12,149.11,0.6098922]
[1728282709930,28.38278707,149.12,149.11,0.6098922]
[1728282711726,52.15967107,149.12,149.11,0.6098922]
[1728282715026,52.41065107,149.12,149.11,0.6098922]
[1728282718654,81.13383159,149.12,149.11,0.6098922]
[1728282719219,79.45704452,149.12,149.11,0.6098922]
[1728282719425,81.13439994,149.12,149.11,0.6098922]
[1728282719925,79.45704452,149.12,149.11,0.6098922]
[1728282720926,55.42918052,149.12,149.11,0.6098922]
[1728282721125,33.1937,149.12,149.11,0.6098922]
[1728282721432,26.706,149.12,149.11,0.6098922]
[1728282722425,6.706,149.12,149.11,0.6098922]
[1728282723551,50.733864,149.12,149.11,0.6098922]
[1728282724854,26.706,149.12,149.11,0.6098922]
[1728282725734,50.482884,149.12,149.11,0.6098922]
[1728282726132,50.733864,149.12,149.11,0.6098922]
[1728282728553,26.706,149.12,149.11,0.6098922]
[1728282738856,26.95698,149.12,149.11,0.6098922]
[1728282739049,50.733864,149.12,149.11,0.6098922]
[1728282740060,26.706,149.12,149.11,0.6098922]
[1728282741064,6.706,149.12,149.11,0.6098922]
[1728282750514,6.7054,149.14,149.11,0.6098922]
[1728282752153,6.7056,149.13,149.11,0.6098922]
[1728282758686,8.38255245,149.12,149.11,0.6098922]
[1728282758874,6.706,149.12,149.11,0.6098922]
[1728282760367,6.7056,149.13,149.11,0.6098922]
[1728282760886,6.7047,149.15,149.11,0.6098922]
[1728282761075,6.7047,149.15,149.11,1.95096858]
[1728282761281,6.7038,149.17,149.12,23.69685725]
[1728282762180,6.7034,149.18,149.13,6.7054]
[1728282762396,6.7034,149.18,149.13,17.57530495]
[1728282764390,1.67607211,149.17,149.13,10.86990495]
[1728282764580,6.7039,149.17,149.12,22.3558]
[1728282764893,6.7039,149.17,149.12,22.8656922]
[1728282765379,6.7039,149.17,149.12,33.73559715]
[1728282765690,6.7039,149.17,149.13,6.7055]
[1728282766198,6.7032,149.19,149.13,6.7055]
[1728282766688,6.7032,149.19,149.12,27.02969715]
[1728282766888,6.7032,149.19,149.14,6.705]
[1728282767068,6.7033,149.18,149.14,6.705]
[1728282767269,6.7033,149.18,149.12,27.02969715]
[1728282767590,6.7033,149.18,149.13,6.7054]
[1728282768393,6.7033,149.18,149.14,6.7051]
[1728282768694,6.7029,149.19,149.14,8.04593135]
[1728282768900,29.25929894,149.22,149.15,10.86990495]
[1728282769067,13.38847327,149.24,149.17,10.86990495]
[1728282769068,7.26077327,149.24,149.17,10.86990495]
[1728282769486,16.7506,149.25,149.17,10.86990495]
[1728282769690,1.67556326,149.23,149.17,10.86990495]
[1728282770100,6.702,149.21,149.17,17.57360495]
[1728282770768,6.7016,149.22,149.17,17.57360495]
[1728282777205,6.7016,149.22,149.18,1.34045305]
[1728282777574,6.7016,149.22,149.17,17.57360495]
[1728282780073,6.7016,149.22,149.17,6.7037]
[1728282784791,6.7016,149.22,149.18,1.34053367]
[1728282785103,6.7016,149.22,149.17,17.57360495]
[1728282786377,6.7016,149.22,149.17,6.7037]
[1728282790408,6.7016,149.22,149.17,17.57360495]
[1728282791109,6.7016,149.22,149.18,1.34047169]
[1728282791609,6.7016,149.22,149.17,17.57360495]
[1728282793881,6.7016,149.22,149.17,18.91411426]
[1728282794382,6.7016,149.22,149.18,6.7031]
[1728282794792,6.7007,149.24,149.19,8.04325319]
[1728282795201,6.7007,149.24,149.19,1.34045319]
[1728282795497,6.7007,149.24,149.19,17.57260495]
[1728282795702,6.7007,149.24,149.19,6.7027]
[1728282796911,8.3763817,149.23,149.18,6.7032]
[1728282797113,6.7015,149.22,149.18,6.7032]
[1728282799092,6.7015,149.22,149.17,23.4623]
[1728282800702,1.67556142,149.21,149.16,22.4886922]
[1728282801001,6.7024,149.2,149.16,15.7845922]
[1728282802810,6.7029,149.19,149.16,15.7845922]
[1728282805624,1.6759948,149.18,149.16,15.7845922]
[1728282807620,1.6759948,149.18,149.16,0.5098922]
[1728282807801,1.67615739,149.21,149.16,0.5098922]
[1728282808003,24.027864,149.2,149.16,0.5098922]
[1728282808199,1.67615629,149.19,149.16,0.5098922]
[1728282809113,6.7037,149.17,149.16,0.5098922]
[1728282815126,6.7033,149.18,149.16,0.5098922]
[1728282815424,6.7027,149.2,149.16,0.5098922]
[1728282816527,6.7019,149.21,149.16,8.55466656]
[1728282816705,20.0,149.2,149.16,7.2139922]
[1728282817213,20.0,149.2,149.16,8.55467004]
[1728282817730,6.7024,149.2,149.16,7.2139922]
[1728282818117,6.7024,149.2,149.16,8.55465405]
[1728282818315,6.7024,149.2,149.16,7.2139922]
[1728282818510,6.7019,149.21,149.17,8.04436776]
[1728282818710,6.7019,149.21,149.17,23.16256776]
[1728282818914,1.67575805,149.2,149.17,15.1182]
[1728282819929,6.7024,149.2,149.17,15.1182]
[1728282820837,1.67577187,149.21,149.17,15.1182]
[1728282821005,6.7006,149.24,149.19,17.57260495]
[1728282821330,6.7006,149.24,149.2,1.34033551]
[1728282821513,6.1244,149.27,149.18,16.7575]
[1728282821514,1.67542898,149.26,149.18,16.7575]
[1728282821719,6.7012,149.23,149.18,34.33060495]
[1728282821919,1.67550143,149.22,149.18,23.4607]
[1728282822120,6.702,149.21,149.17,15.1182]
[1728282822519,6.7015,149.22,149.17,15.1182]
[1728282823835,1.67568018,149.21,149.17,15.1182]
[1728282824328,6.7015,149.22,149.17,15.1182]
[1728282824831,1.67567706,149.21,149.17,15.1182]
[1728282825231,6.7015,149.22,149.17,15.1182]
[1728282825406,6.7015,149.22,149.17,21.8218]
[1728282825729,1.67563645,149.21,149.17,21.8218]
[1728282826437,8.37763645,149.21,149.17,21.8218]
[1728282826728,6.702,149.21,149.17,15.1182]
[1728282832312,6.702,149.21,149.17,16.45877135]
[1728282832512,6.702,149.21,149.17,15.1182]
[1728282837016,6.702,149.21,149.17,16.45877264]
[1728282837350,6.702,149.21,149.17,15.1182]
[1728282838052,6.702,149.21,149.17,16.45877005]
[1728282838246,6.702,149.21,149.17,15.1182]
[1728282841256,6.7025,149.2,149.17,15.1182]
[1728282844146,6.702,149.21,149.17,15.1182]
[1728282845264,6.7015,149.22,149.17,33.67337224]
[1728282845466,6.7015,149.22,149.18,6.7032]
[1728282845667,6.7015,149.22,149.18,8.04362892]
[1728282847039,20.0,149.25,149.19,10.86990495]
[1728282847238,20.0,149.25,149.19,17.57270495]
[1728282847239,6.701,149.23,149.19,17.57270495]
[1728282847457,6.701,149.23,149.19,10.86990495]
[1728282848244,16.7465,149.29,149.19,10.86990495]
[1728282848444,6.7002,149.25,149.21,6.7019]
[1728282848651,6.7002,149.25,149.22,16.739958]
[1728282848851,6.7002,149.25,149.22,15.3998]
[1728282850565,6.6998,149.26,149.22,15.3998]
[1728282850765,6.6993,149.27,149.23,1.34010237]
[1728282851239,6.6993,149.27,149.23,12.21000732]
[1728282851635,6.6993,149.27,149.22,22.1012]
[1728282851941,28.73137824,149.31,149.22,15.3998]
[1728282851942,1.67497953,149.26,149.22,15.3998]
[1728282852144,6.6997,149.26,149.22,15.3998]
[1728282853257,6.6997,149.26,149.22,16.73989356]
[1728282853447,6.6997,149.26,149.22,15.3998]
[1728282856180,6.6997,149.26,149.22,22.1012]
[1728282859872,6.6997,149.26,149.23,1.33998245]
[1728282860371,6.6997,149.26,149.22,22.1012]
[1728282860979,6.6997,149.26,149.23,1.3399839]
[1728282861358,6.6997,149.26,149.22,15.3998]
[1728282861884,6.6997,149.26,149.22,16.73980971]
[1728282862682,6.6997,149.26,149.22,15.3998]
[1728282863485,6.6997,149.26,149.23,1.34000738]
[1728282863789,6.6997,149.26,149.22,15.3998]
[1728282864288,6.6997,149.26,149.23,1.3400097]
[1728282864886,6.6997,149.26,149.22,15.3998]
[1728282865086,6.6997,149.26,149.23,1.34000568]
[1728282865292,6.6993,149.27,149.23,1.34000568]
[1728282865791,24.027864,149.3,149.23,1.34000568]
[1728282865792,6.6988,149.28,149.23,8.04100568]
[1728282865984,20.0,149.3,149.24,12.20969162]
[1728282866190,6.6987,149.29,149.24,17.57030495]
[1728282867672,8.37335145,149.29,149.24,6.7004]
[1728282867869,6.6987,149.29,149.24,6.7004]
[1728282869280,21.67465143,149.31,149.23,16.7521]
[1728282869601,6.6991,149.28,149.23,23.4531]
[1728282869895,6.6984,149.29,149.26,16.0761]
[1728282870097,6.6984,149.29,149.27,1.33968522]
[1728282870897,6.6984,149.29,149.26,16.0761]
[1728282872292,1.16635401,149.34,149.26,16.0761]
[1728282872599,6.6979,149.3,149.27,1.33956976]
[1728282872779,6.6979,149.3,149.26,22.7757]
[1728282873294,6.6975,149.31,149.27,8.03877245]
[1728282873475,6.6975,149.31,149.27,1.33957245]
[1728282873793,6.6975,149.31,149.26,16.0761]
[1728282874176,6.6975,149.31,149.26,22.7757]
[1728282876206,6.6973,149.32,149.27,8.03871782]
[1728282876400,21.16635401,149.34,149.26,16.0761]
[1728282876586,1.67439489,149.33,149.26,16.0761]
[1728282876791,6.6984,149.29,149.26,16.0761]
[1728282877378,6.6992,149.27,149.26,16.0761]
[1728282884404,6.6988,149.28,149.26,16.0761]
[1728282885219,20.0,149.32,149.26,16.0761]
[1728282885416,6.6984,149.29,149.26,16.0761]
[1728282886211,20.0,149.32,149.26,16.0761]
[1728282886518,6.6979,149.3,149.26,16.0761]
[1728282887310,1.67452357,149.32,149.26,16.0761]
[1728282887517,6.6988,149.28,149.26,16.0761]
[1728282888090,16.7423,149.33,149.26,16.0761]
[1728282888321,6.6975,149.31,149.27,1.3395439]
[1728282888623,6.6975,149.31,149.26,39.75790495]
[1728282889625,6.698,149.3,149.26,33.05860495]
[1728282889907,0.12549,149.35,149.26,33.05860495]
[1728282890222,6.6975,149.31,149.27,1.33949945]
[1728282890396,6.6975,149.31,149.26,39.75810495]
[1728282890597,6.6975,149.31,149.26,33.05860495]
[1728282890799,6.6975,149.31,149.27,6.6992]
[1728282891004,20.0,149.35,149.28,1.33949386]
[1728282891210,6.697,149.32,149.28,1.33949386]
[1728282891429,6.697,149.32,149.28,12.20939881]
[1728282891718,6.6953,149.36,149.31,22.4843]
[1728282891894,1.6738337,149.37,149.32,10.86990495]
[1728282892098,6.6957,149.35,149.32,10.86990495]
[1728282892793,6.6962,149.34,149.31,15.7869]
[1728282894024,6.6957,149.35,149.32,12.20911507]
[1728282894203,6.6957,149.35,149.32,10.86990495]
[1728282894519,6.6957,149.35,149.33,1.33912247]
[1728282894821,6.6948,149.37,149.34,1.33908113]
[1728282895205,6.6948,149.37,149.35,1.3390285]
[1728282895404,6.6944,149.38,149.35,1.3390285]
[1728282895607,6.6944,149.38,149.34,10.86990495]
[1728282895911,21.77815124,149.42,149.36,10.86990495]
[1728282896099,6.6934,149.4,149.36,10.86990495]
[1728282896820,6.6934,149.4,149.36,26.71180495]
[1728282897523,6.6947,149.38,149.36,15.8419]
[1728282898020,6.6947,149.38,149.34,10.86990495]
[1728282898212,21.77815124,149.42,149.33,10.86990495]
[1728282898419,1.67356384,149.41,149.33,10.86990495]
[1728282898999,6.6948,149.37,149.33,10.86990495]
[1728282899398,6.6948,149.37,149.35,10.86990495]
[1728282900311,6.6943,149.38,149.35,10.86990495]
[1728282900508,6.6947,149.37,149.35,10.86990495]
[1728282901010,6.696,149.35,149.32,26.38900495]
[1728282901695,6.696,149.35,149.33,1.33908239]
[1728282902011,6.6952,149.37,149.33,1.33908239]
[1728282902623,6.6952,149.37,149.34,10.86990495]
[1728282903304,6.6952,149.36,149.34,10.86990495]
[1728282903506,16.7332,149.41,149.34,10.86990495]
[1728282904004,6.6952,149.36,149.34,10.86990495]
[1728282904736,6.6952,149.36,149.33,10.86990495]
[1728282905236,6.6947,149.37,149.34,12.20889965]
[1728282905835,6.6947,149.37,149.34,10.86990495]
[1728282906337,6.6947,149.37,149.35,1.3389787]
[1728282906713,6.6947,149.37,149.34,10.86990495]
[1728282910238,6.6953,149.36,149.33,10.86990495]
[1728282911908,6.6961,149.34,149.32,15.5191]
[1728282912117,6.6957,149.35,149.33,10.86990495]
[1728282912433,6.6957,149.35,149.33,12.20903708]
[1728282913241,6.6957,149.35,149.33,10.86990495]
[1728282913844,6.6957,149.35,149.32,15.5191]
[1728282914211,1.67396967,149.38,149.3,10.86990495]
[1728282914534,20.12549,149.36,149.28,27.42800495]
[1728282914735,6.6979,149.3,149.28,27.42800495]
[1728282915941,6.6975,149.31,149.28,27.42800495]
[1728282916327,6.6975,149.31,149.29,10.86990495]
[1728282917415,6.6979,149.3,149.28,16.5581]
[1728282917840,6.6979,149.3,149.27,10.86990495]
[1728282918832,6.6979,149.3,149.28,1.3396165]
[1728282919940,6.6979,149.3,149.27,10.86990495]
[1728282920248,6.6975,149.31,149.28,12.20951923]
[1728282921339,6.6975,149.31,149.28,10.86990495]
[1728282921851,6.213,149.35,149.3,10.86990495]
[1728282922036,6.6957,149.35,149.32,10.86990495]
[1728282923046,16.7361,149.38,149.32,10.86990495]
[1728282923355,6.6962,149.34,149.32,10.86990495]
[1728282925446,6.697,149.33,149.3,10.86990495]
[1728282925641,6.697,149.32,149.29,15.4936]
[1728282925835,6.6976,149.31,149.27,27.61730495]
[1728282926054,16.7388,149.36,149.27,27.61730495]
[1728282926347,6.697,149.33,149.29,10.86990495]
[1728282927744,6.6971,149.32,149.29,10.86990495]
[1728282928350,1.67419864,149.35,149.27,16.7474]
[1728282928548,6.6975,149.31,149.28,10.86990495]
[1728282930550,15.8786,149.36,149.25,28.889]
[1728282930748,6.6984,149.29,149.26,10.86990495]
[1728282931953,6.6984,149.29,149.27,10.86990495]
[1728282932145,6.6984,149.29,149.26,10.86990495]
[1728282933054,6.6988,149.28,149.25,15.7759]
[1728282933241,6.6988,149.28,149.25,26.64580495]
[1728282935837,6.6988,149.28,149.25,10.86990495]
[1728282936860,6.6998,149.26,149.23,10.86990495]
[1728282937166,6.7003,149.25,149.21,43.35100495]
[1728282937541,6.6998,149.26,149.22,10.86990495]
[1728282938063,6.6998,149.26,149.22,17.57130495]
[1728282938569,6.6998,149.26,149.22,10.86990495]
[1728282945237,6.5268,149.29,149.24,10.86990495]
[1728282945445,6.6994,149.27,149.24,10.86990495]
[1728282946256,1.67495127,149.28,149.24,10.86990495]
[1728282946439,6.6997,149.26,149.24,10.86990495]
[1728282948154,6.6993,149.27,149.24,10.86990495]
[1728282948549,1.67495127,149.28,149.22,10.86990495]
[1728282948758,6.6997,149.26,149.22,10.86990495]
[1728282952272,6.6997,149.26,149.23,1.34007811]
[1728282953067,6.6997,149.26,149.22,10.86990495]
[1728282954148,6.6992,149.28,149.25,10.86990495]
[1728282954475,6.6992,149.27,149.25,10.86990495]
[1728282956074,6.6992,149.27,149.23,17.57090495]
[1728282956371,6.6992,149.27,149.23,10.86990495]
[1728282957260,6.6992,149.27,149.24,1.33998523]
[1728282957768,6.6992,149.27,149.23,10.86990495]
[1728282959752,16.3976,149.31,149.25,10.86990495]
[1728282959957,6.6975,149.31,149.27,10.86990495]
[1728282960162,6.5317,149.33,149.27,10.86990495]
[1728282960163,6.6971,149.32,149.27,17.56900495]
[1728282960454,6.6975,149.31,149.27,17.56900495]
[1728282962275,6.6975,149.31,149.27,10.86990495]
[1728282964057,32.5695,149.36,149.27,10.86990495]
[1728282964258,6.6966,149.33,149.29,10.86990495]
[1728282964487,6.6966,149.33,149.29,18.90762727]
[1728282964653,6.1303,149.37,149.31,10.86990495]
[1728282964858,6.6957,149.35,149.31,10.86990495]
[1728282965563,8.37033975,149.34,149.31,10.86990495]
[1728282965761,6.6962,149.34,149.31,10.86990495]
[1728282966888,6.6962,149.34,149.29,17.56810495]
[1728282968587,6.697,149.32,149.28,27.61590495]
[1728282969087,6.6971,149.32,149.28,27.61590495]
[1728282969398,1.67427846,149.34,149.28,10.86990495]
[1728282969681,6.6976,149.31,149.28,10.86990495]
[1728282971484,44.027864,149.36,149.28,10.86990495]
[1728282971694,6.6971,149.32,149.28,10.86990495]
[1728282974364,44.027864,149.36,149.28,10.86990495]
[1728282974563,6.6966,149.33,149.28,17.56830495]
[1728282975070,6.697,149.32,149.28,17.56830495]
[1728282975572,6.697,149.32,149.28,10.86990495]
[1728282978172,6.6979,149.3,149.26,32.7822]
[1728282978393,6.6979,149.3,149.26,43.65210495]
[1728282978582,6.6987,149.29,149.26,26.90350495]
[1728282978895,6.6988,149.28,149.24,10.86990495]
[1728282980502,1.67487539,149.27,149.22,22.4244]
[1728282980790,20.12549,149.31,149.22,33.29430495]
[1728282980791,6.6997,149.26,149.22,33.29430495]
[1728282983225,6.6997,149.26,149.22,26.59290495]
[1728282983794,6.6993,149.27,149.24,10.86990495]
[1728282993018,8.37489509,149.26,149.22,26.59290495]
[1728282993207,6.6999,149.26,149.22,26.59290495]
[1728282995312,6.6999,149.26,149.22,10.86990495]
[1728282998195,6.7011,149.23,149.18,17.57300495]
[1728283000735,1.67547124,149.22,149.18,10.86990495]
[1728283000911,6.7018,149.22,149.18,10.86990495]
[1728283002706,1.67558702,149.21,149.18,10.86990495]
[1728283003405,6.7023,149.21,149.17,16.7588]
[1728283003607,1.67574342,149.2,149.17,16.7588]
[1728283003834,8.37814342,149.2,149.17,16.7588]
[1728283004036,6.7024,149.2,149.17,16.7588]
[1728283004209,6.7024,149.2,149.16,11.37979715]
[1728283005841,8.37870493,149.19,149.16,0.5098922]
[1728283006013,6.7029,149.19,149.16,0.5098922]
[1728283007129,6.7033,149.18,149.16,0.5098922]
[1728283009541,6.7024,149.21,149.17,10.86990495]
[1728283009850,6.7019,149.21,149.17,17.57360495]
[1728283010141,6.7019,149.21,149.17,10.86990495]
[1728283013737,6.7015,149.22,149.18,6.7033]
[1728283013942,15.2827,149.24,149.19,10.86990495]
[1728283014345,24.027864,149.25,149.19,10.86990495]
[1728283014645,6.7011,149.23,149.19,17.57260495]
[1728283016252,6.7001,149.25,149.2,6.7022]
[1728283016431,6.7001,149.25,149.21,10.86990495]
[1728283018856,1.6752883,149.24,149.2,6.7022]
[1728283019026,1.6752883,149.24,149.19,10.86990495]
[1728283019230,6.7015,149.22,149.19,10.86990495]
[1728283021961,6.702,149.21,149.16,22.5139922]
[1728283022120,6.702,149.21,149.17,10.86990495]
[1728283023752,1.675479,149.26,149.17,10.86990495]
[1728283023959,6.7024,149.2,149.17,10.86990495]
[1728283025742,6.7024,149.2,149.16,15.8098922]
[1728283026059,6.7029,149.19,149.16,15.8098922]
[1728283026275,40.778864,149.25,149.16,15.8098922]
[1728283026276,6.7025,149.2,149.16,17.15059045]
[1728283026483,6.7021,149.21,149.17,10.86990495]
[1728283026635,6.7021,149.21,149.17,17.57350495]
[1728283027259,20.0,149.24,149.17,17.57350495]
[1728283027470,6.7016,149.22,149.17,17.57350495]
[1728283028858,8.37763362,149.21,149.17,10.86990495]
[1728283029061,6.702,149.21,149.17,10.86990495]
[1728283029450,6.702,149.21,149.17,17.57360495]
[1728283029971,1.67562557,149.23,149.17,10.86990495]
[1728283030269,6.7015,149.22,149.17,10.86990495]
[1728283030955,1.67563019,149.23,149.17,10.86990495]
[1728283031139,6.702,149.21,149.17,10.86990495]
[1728283031340,1.67563019,149.23,149.17,10.86990495]
[1728283031568,6.7028,149.19,149.16,15.8098922]
[1728283033076,6.7028,149.19,149.16,0.5098922]
[1728283034080,24.027864,149.23,149.16,19.42461426]
[1728283034279,6.702,149.21,149.16,18.08389715]
[1728283034873,6.7011,149.23,149.18,17.57290495]
[1728283035186,6.7011,149.23,149.19,1.34041589]
[1728283035574,6.7007,149.24,149.19,6.7027]
[1728283035767,6.7007,149.24,149.19,8.04303304]
[1728283035961,8.37649883,149.23,149.18,10.86990495]
[1728283036159,6.7011,149.23,149.18,10.86990495]
[1728283038373,6.7011,149.23,149.18,14.51708866]
[1728283038987,6.7011,149.23,149.19,1.3404041]
[1728283039586,39.95388071,149.28,149.2,0.98157996]
[1728283039587,6.7006,149.24,149.2,0.98157996]
[1728283039785,6.7006,149.24,149.2,10.86990495]
[1728283040769,6.7006,149.24,149.2,11.85219919]
[1728283040976,6.7002,149.25,149.2,17.57210495]
[1728283041469,6.7002,149.25,149.2,22.55993135]
[1728283041670,6.7002,149.25,149.2,18.91235103]